[Event "*** Titled Tuesday Blitz"]
[Site "Chess.com"]
[Date "2019.03.05"]
[Round "10"]
[White "Korchmar_Vasiliy"]
[Black "Ar4uha"]
[Result "1-0"]
[WhiteElo "2768"]
[BlackElo "2501"]
[TimeControl "180+2"]
[EndTime "15:29:13 PST"]
[Termination "Korchmar_Vasiliy won by resignation"]

1. d4 {[%clk 0:03:01.4]} 1... Nf6 {[%clk 0:02:58.7]} 2. c4 {[%clk 0:03:02.7]}
2... e6 {[%clk 0:03:00.1]} 3. g3 {[%clk 0:03:03.7]} 3... d5 {[%clk 0:03:01]} 4.
Bg2 {[%clk 0:03:05]} 4... dxc4 {[%clk 0:03:01.2]} 5. Nf3 {[%clk 0:03:05.4]} 5...
Nbd7 {[%clk 0:03:01.5]} 6. O-O {[%clk 0:03:03.7]} 6... Rb8 {[%clk 0:03:02.6]} 7.
a4 {[%clk 0:03:02.7]} 7... b6 {[%clk 0:03:03.8]} 8. Nfd2 {[%clk 0:02:58.9]} 8...
Ba6 {[%clk 0:03:04.7]} 9. Qc2 {[%clk 0:02:54.3]} 9... c5 {[%clk 0:03:01]} 10.
dxc5 {[%clk 0:02:47]} 10... Bxc5 {[%clk 0:03:01.8]} 11. Nxc4 {[%clk 0:02:48.4]}
11... Rc8 {[%clk 0:03:01.7]} 12. b3 {[%clk 0:02:40]} 12... Ne5 {[%clk
0:02:58.2]} 13. Rd1 {[%clk 0:02:36.2]} 13... Qe7 {[%clk 0:02:58.4]} 14. Nba3
{[%clk 0:02:30.3]} 14... Nxc4 {[%clk 0:02:01.7]} 15. Nxc4 {[%clk 0:02:32.2]}
15... O-O {[%clk 0:02:03]} 16. Bb2 {[%clk 0:02:30.1]} 16... Nd5 {[%clk
0:02:04.3]} 17. Rac1 {[%clk 0:02:08.2]} 17... Rfd8 {[%clk 0:02:04]} 18. Qb1
{[%clk 0:02:04.8]} 18... Nb4 {[%clk 0:01:52.7]} 19. Be4 {[%clk 0:01:53.3]} 19...
h6 {[%clk 0:01:37.4]} 20. Qa1 {[%clk 0:01:48.1]} 20... f6 {[%clk 0:01:33.6]} 21.
Qb1 {[%clk 0:01:32.1]} 21... Bb7 {[%clk 0:01:31]} 22. Bxb7 {[%clk 0:01:26.4]}
22... Qxb7 {[%clk 0:01:32.9]} 23. Qg6 {[%clk 0:01:27.7]} 23... Qf7 {[%clk
0:01:29.6]} 24. Qg4 {[%clk 0:01:22.8]} 24... Kh7 {[%clk 0:01:13.2]} 25. Nd6
{[%clk 0:01:12.4]} 25... Bxd6 {[%clk 0:00:55.8]} 26. Rxc8 {[%clk 0:01:14.3]}
26... Rxc8 {[%clk 0:00:51.7]} 27. Rxd6 {[%clk 0:01:15.8]} 27... Rc2 {[%clk
0:00:44.4]} 28. Qxb4 {[%clk 0:00:42]} 28... Rxb2 {[%clk 0:00:45.1]} 29. Qe4+
{[%clk 0:00:39.6]} 29... f5 {[%clk 0:00:41.7]} 30. Qe5 {[%clk 0:00:41.1]} 30...
Rxb3 {[%clk 0:00:34.7]} 31. Rxe6 {[%clk 0:00:39.9]} 31... Rb4 {[%clk 0:00:29.9]}
32. Re7 {[%clk 0:00:38.2]} 32... Qg6 {[%clk 0:00:29.2]} 33. Rxa7 {[%clk
0:00:39.1]} 33... f4 {[%clk 0:00:16]} 34. Kg2 {[%clk 0:00:40.3]} 34... Qg4
{[%clk 0:00:12.6]} 35. h3 {[%clk 0:00:34.7]} 35... Qg6 {[%clk 0:00:13.5]} 36. g4
{[%clk 0:00:33.7]} 36... Re4 {[%clk 0:00:14.7]} 37. Rxg7+ {[%clk 0:00:31.3]}
37... Qxg7 {[%clk 0:00:15]} 38. Qxe4+ {[%clk 0:00:32.6]} 38... Qg6 {[%clk
0:00:16.3]} 39. Qxg6+ {[%clk 0:00:32.4]} 39... Kxg6 {[%clk 0:00:18.2]} 40. h4
{[%clk 0:00:30.3]} 1-0

[Event "*** Titled Tuesday Blitz"]
[Site "Chess.com"]
[Date "2019.03.05"]
[Round "10"]
[White "RegZryt"]
[Black "ahkashefi2800"]
[Result "0-1"]
[WhiteElo "2460"]
[BlackElo "2293"]
[TimeControl "180+2"]
[EndTime "15:29:15 PST"]
[Termination "ahkashefi2800 won by resignation"]

1. d4 {[%clk 0:03:01.9]} 1... d5 {[%clk 0:03:00.3]} 2. c4 {[%clk 0:03:02.8]}
2... c6 {[%clk 0:03:01.2]} 3. Nf3 {[%clk 0:03:03.5]} 3... Nf6 {[%clk 0:03:02]}
4. e3 {[%clk 0:03:04.5]} 4... Bf5 {[%clk 0:02:58.2]} 5. Nc3 {[%clk 0:03:03.8]}
5... e6 {[%clk 0:02:58.5]} 6. Nh4 {[%clk 0:03:04.6]} 6... Bg6 {[%clk 0:02:57.7]}
7. Qb3 {[%clk 0:03:03.5]} 7... Qb6 {[%clk 0:02:57.2]} 8. Bd2 {[%clk 0:02:57.3]}
8... Nbd7 {[%clk 0:02:57.7]} 9. f4 {[%clk 0:02:54.1]} 9... Be7 {[%clk
0:02:57.5]} 10. c5 {[%clk 0:02:49.1]} 10... Qc7 {[%clk 0:02:50.2]} 11. Nxg6
{[%clk 0:02:50.1]} 11... hxg6 {[%clk 0:02:51.2]} 12. Qc2 {[%clk 0:02:51]} 12...
g5 {[%clk 0:02:48.5]} 13. g3 {[%clk 0:02:49.7]} 13... gxf4 {[%clk 0:02:41.8]}
14. gxf4 {[%clk 0:02:33.4]} 14... Ng4 {[%clk 0:02:40.1]} 15. h3 {[%clk
0:02:31.8]} 15... f5 {[%clk 0:02:40.8]} 16. b4 {[%clk 0:02:14.5]} 16... Bh4+
{[%clk 0:02:29.8]} 17. Ke2 {[%clk 0:02:14.8]} 17... Nf2 {[%clk 0:02:30.7]} 18.
Rh2 {[%clk 0:02:11.7]} 18... Ne4 {[%clk 0:02:29.6]} 19. Nxe4 {[%clk 0:02:11.7]}
19... fxe4 {[%clk 0:02:30.7]} 20. Bg2 {[%clk 0:01:51.1]} 20... g5 {[%clk
0:02:31.1]} 21. Rf1 {[%clk 0:01:44.4]} 21... gxf4 {[%clk 0:02:30.5]} 22. exf4
{[%clk 0:01:46.3]} 22... O-O-O {[%clk 0:02:31]} 23. Be3 {[%clk 0:01:37.9]} 23...
Rdf8 {[%clk 0:02:31.6]} 24. Qd2 {[%clk 0:01:38.3]} 24... Rf5 {[%clk 0:02:28.4]}
25. Bh1 {[%clk 0:01:36]} 25... Rhf8 {[%clk 0:02:27.7]} 26. Rg2 {[%clk
0:01:37.1]} 26... Nf6 {[%clk 0:02:26]} 27. Rg6 {[%clk 0:01:23.7]} 27... Nh5
{[%clk 0:02:18]} 28. Rfg1 {[%clk 0:01:17.9]} 28... Nxf4+ {[%clk 0:02:13.8]} 29.
Bxf4 {[%clk 0:01:18.5]} 29... Rxf4 {[%clk 0:02:14.7]} 30. Kd1 {[%clk 0:01:16.3]}
30... Rf2 {[%clk 0:02:02.8]} 31. Qh6 {[%clk 0:01:16.8]} 31... Rf1+ {[%clk
0:01:55.7]} 32. Rxf1 {[%clk 0:01:00.7]} 32... Rxf1+ {[%clk 0:01:57.6]} 33. Ke2
{[%clk 0:01:01.9]} 33... Rxh1 {[%clk 0:01:05.1]} 34. Qxh4 {[%clk 0:00:57.4]}
34... Qh2+ {[%clk 0:01:04.8]} 35. Ke3 {[%clk 0:00:58.8]} 35... Qxh3+ {[%clk
0:01:04.4]} 36. Qxh3 {[%clk 0:00:59.8]} 36... Rxh3+ {[%clk 0:01:05.1]} 37. Kf4
{[%clk 0:01:01.7]} 37... a6 {[%clk 0:01:01.6]} 38. Rxe6 {[%clk 0:00:35.9]} 38...
Ra3 {[%clk 0:01:00.8]} 39. Ke5 {[%clk 0:00:36.2]} 39... Rxa2 {[%clk 0:01:00.4]}
40. Kd6 {[%clk 0:00:37.5]} 40... Kb8 {[%clk 0:01:01]} 41. Re8+ {[%clk
0:00:38.1]} 41... Ka7 {[%clk 0:01:01.8]} 42. Kc7 {[%clk 0:00:39.3]} 42... Rb2
{[%clk 0:01:02.6]} 43. Rh8 {[%clk 0:00:21.2]} 43... Rxb4 {[%clk 0:01:03.3]} 44.
Rb8 {[%clk 0:00:22]} 44... a5 {[%clk 0:01:04.1]} 45. Rh8 {[%clk 0:00:22.5]}
45... Rxd4 {[%clk 0:01:05.1]} 46. Rb8 {[%clk 0:00:23.1]} 46... Rb4 {[%clk
0:01:06.1]} 47. Rh8 {[%clk 0:00:24.3]} 47... a4 {[%clk 0:01:07.6]} 48. Rh3
{[%clk 0:00:25.2]} 0-1

[Event "*** Titled Tuesday Blitz"]
[Site "Chess.com"]
[Date "2019.03.05"]
[Round "10"]
[White "bluejay1897"]
[Black "mlchen"]
[Result "0-1"]
[WhiteElo "2144"]
[BlackElo "2380"]
[TimeControl "180+2"]
[EndTime "15:29:19 PST"]
[Termination "mlchen won by checkmate"]

1. Nf3 {[%clk 0:03:01.9]} 1... Nf6 {[%clk 0:03:00.7]} 2. g3 {[%clk 0:03:02.8]}
2... e6 {[%clk 0:03:02]} 3. Bg2 {[%clk 0:03:02.5]} 3... c6 {[%clk 0:03:03.6]} 4.
O-O {[%clk 0:03:02.8]} 4... d5 {[%clk 0:03:05.1]} 5. b3 {[%clk 0:03:03.8]} 5...
b5 {[%clk 0:03:06.6]} 6. Bb2 {[%clk 0:03:05.1]} 6... a5 {[%clk 0:03:07.9]} 7. d3
{[%clk 0:03:04.4]} 7... Be7 {[%clk 0:03:09.4]} 8. Nbd2 {[%clk 0:03:02.3]} 8...
O-O {[%clk 0:03:09.2]} 9. c4 {[%clk 0:03:02.7]} 9... Ba6 {[%clk 0:03:08.5]} 10.
Qc2 {[%clk 0:03:01.7]} 10... Nbd7 {[%clk 0:03:08.8]} 11. Rac1 {[%clk 0:03:01.7]}
11... Rc8 {[%clk 0:03:09]} 12. Qb1 {[%clk 0:03:02.9]} 12... Qb6 {[%clk
0:03:09.2]} 13. Qa1 {[%clk 0:03:03]} 13... a4 {[%clk 0:03:02.7]} 14. Ne5 {[%clk
0:02:52.1]} 14... Nxe5 {[%clk 0:02:58.6]} 15. Bxe5 {[%clk 0:02:52.1]} 15... Bb7
{[%clk 0:02:51.8]} 16. bxa4 {[%clk 0:02:47.3]} 16... bxa4 {[%clk 0:02:53]} 17.
Rb1 {[%clk 0:02:48.4]} 17... Qa7 {[%clk 0:02:49.9]} 18. Qb2 {[%clk 0:02:40.6]}
18... Ba8 {[%clk 0:02:41.4]} 19. Rfc1 {[%clk 0:02:28.1]} 19... c5 {[%clk
0:02:31]} 20. cxd5 {[%clk 0:02:23.2]} 20... exd5 {[%clk 0:02:16.4]} 21. Nf3
{[%clk 0:02:06.7]} 21... Rfe8 {[%clk 0:02:13.5]} 22. h4 {[%clk 0:01:57]} 22...
d4 {[%clk 0:02:01.8]} 23. Qd2 {[%clk 0:01:30.4]} 23... Nd5 {[%clk 0:01:59]} 24.
h5 {[%clk 0:01:12]} 24... Bf8 {[%clk 0:01:52.6]} 25. h6 {[%clk 0:01:06.4]} 25...
Nc3 {[%clk 0:01:52.5]} 26. Rxc3 {[%clk 0:01:06.9]} 26... dxc3 {[%clk 0:01:53.2]}
27. Qxc3 {[%clk 0:01:08.1]} 27... f6 {[%clk 0:01:15.3]} 28. hxg7 {[%clk
0:01:05.7]} 28... Bxg7 {[%clk 0:01:13.9]} 29. Bxf6 {[%clk 0:01:06.4]} 29... Rxe2
{[%clk 0:01:14.3]} 30. Bxg7 {[%clk 0:00:44.5]} 30... Qxg7 {[%clk 0:01:13.9]} 31.
Qc4+ {[%clk 0:00:45.9]} 31... Kh8 {[%clk 0:01:08.3]} 32. Qxa4 {[%clk 0:00:34.4]}
32... Rf8 {[%clk 0:00:49.8]} 33. Qd1 {[%clk 0:00:21.7]} 33... Qe7 {[%clk
0:00:43]} 34. d4 {[%clk 0:00:18.7]} 34... Bxf3 {[%clk 0:00:41.2]} 35. Bxf3
{[%clk 0:00:19.4]} 35... Rxf3 {[%clk 0:00:34.1]} 36. dxc5 {[%clk 0:00:19.5]}
36... Rfxf2 {[%clk 0:00:23.1]} 37. Qd4+ {[%clk 0:00:19.4]} 37... Qf6 {[%clk
0:00:22.9]} 38. Rb8+ {[%clk 0:00:18.1]} 38... Kg7 {[%clk 0:00:23.9]} 39. Rb7+
{[%clk 0:00:19.3]} 39... Kh6 {[%clk 0:00:18.7]} 40. Rb6 {[%clk 0:00:14.8]} 40...
Rf1# {[%clk 0:00:19.9]} 0-1

[Event "*** Titled Tuesday Blitz"]
[Site "Chess.com"]
[Date "2019.03.05"]
[Round "10"]
[White "HrvojeZagreb"]
[Black "quesfr"]
[Result "1-0"]
[WhiteElo "2147"]
[BlackElo "2235"]
[TimeControl "180+2"]
[EndTime "15:29:31 PST"]
[Termination "HrvojeZagreb won by checkmate"]

1. d4 {[%clk 0:03:01.9]} 1... d5 {[%clk 0:03:00.3]} 2. Bf4 {[%clk 0:03:02]} 2...
c5 {[%clk 0:03:00.1]} 3. e3 {[%clk 0:02:58.4]} 3... Nc6 {[%clk 0:03:00.9]} 4.
Nc3 {[%clk 0:02:54.9]} 4... cxd4 {[%clk 0:02:28.6]} 5. exd4 {[%clk 0:02:56.8]}
5... Bf5 {[%clk 0:02:29.6]} 6. Nf3 {[%clk 0:02:45.3]} 6... e6 {[%clk 0:02:30.4]}
7. Bb5 {[%clk 0:02:34.2]} 7... Bd6 {[%clk 0:02:25.3]} 8. Ne5 {[%clk 0:02:21.5]}
8... Ne7 {[%clk 0:02:25.7]} 9. g4 {[%clk 0:01:52.4]} 9... Bg6 {[%clk 0:02:22]}
10. h4 {[%clk 0:01:52.3]} 10... h5 {[%clk 0:02:15]} 11. Nxg6 {[%clk 0:01:46.5]}
11... Nxg6 {[%clk 0:02:12.4]} 12. Bxd6 {[%clk 0:01:46.8]} 12... Qxd6 {[%clk
0:02:13.5]} 13. gxh5 {[%clk 0:01:40.8]} 13... Nf4 {[%clk 0:02:07.6]} 14. Qg4
{[%clk 0:01:37]} 14... Nxh5 {[%clk 0:02:00]} 15. O-O-O {[%clk 0:01:28.3]} 15...
Qf4+ {[%clk 0:01:58.9]} 16. Qxf4 {[%clk 0:01:29.2]} 16... Nxf4 {[%clk
0:02:00.8]} 17. Rdg1 {[%clk 0:01:18.4]} 17... g6 {[%clk 0:02:00.1]} 18. Rg4
{[%clk 0:01:17.5]} 18... Nh5 {[%clk 0:01:57.4]} 19. Bxc6+ {[%clk 0:01:03.9]}
19... bxc6 {[%clk 0:01:58.1]} 20. Na4 {[%clk 0:01:04.7]} 20... Ke7 {[%clk
0:01:56.3]} 21. Nc5 {[%clk 0:01:04.7]} 21... Rh7 {[%clk 0:01:54]} 22. a4 {[%clk
0:01:00.7]} 22... Rah8 {[%clk 0:01:54.2]} 23. Kd2 {[%clk 0:00:21.6]} 23... Ng7
{[%clk 0:01:31.6]} 24. Rg3 {[%clk 0:00:15.6]} 24... Rxh4 {[%clk 0:01:30.5]} 25.
Rxh4 {[%clk 0:00:15.9]} 25... Rxh4 {[%clk 0:01:31.6]} 26. Rb3 {[%clk 0:00:14.9]}
26... Rxd4+ {[%clk 0:01:32.2]} 27. Ke3 {[%clk 0:00:15.9]} 27... Nf5+ {[%clk
0:01:31.7]} 28. Ke2 {[%clk 0:00:16.7]} 28... Kd6 {[%clk 0:01:26.3]} 29. Nd3
{[%clk 0:00:16.4]} 29... Rxa4 {[%clk 0:01:19.4]} 30. Rb7 {[%clk 0:00:17.5]}
30... f6 {[%clk 0:01:12.6]} 31. c3 {[%clk 0:00:17.6]} 31... Ne7 {[%clk
0:00:51.6]} 32. Kd2 {[%clk 0:00:15.9]} 32... Ra1 {[%clk 0:00:51.2]} 33. Kc2
{[%clk 0:00:15.6]} 33... g5 {[%clk 0:00:50.7]} 34. b4 {[%clk 0:00:14.1]} 34...
Ng6 {[%clk 0:00:35.5]} 35. Rf7 {[%clk 0:00:09.2]} 35... f5 {[%clk 0:00:22.5]}
36. Nc5 {[%clk 0:00:03.9]} 36... Ra2+ {[%clk 0:00:21.8]} 37. Kb3 {[%clk
0:00:04.5]} 37... Rxf2 {[%clk 0:00:21.8]} 38. Rg7 {[%clk 0:00:03.6]} 38... Ne5
{[%clk 0:00:17.8]} 39. Nb7# {[%clk 0:00:04.3]} 1-0

[Event "*** Titled Tuesday Blitz"]
[Site "Chess.com"]
[Date "2019.03.05"]
[Round "10"]
[White "W_Amadeus"]
[Black "mikhaillushenkov"]
[Result "1-0"]
[WhiteElo "2646"]
[BlackElo "2609"]
[TimeControl "180+2"]
[EndTime "15:29:36 PST"]
[Termination "W_Amadeus won by resignation"]

1. e4 {[%clk 0:03:01.9]} 1... e6 {[%clk 0:02:59.6]} 2. d4 {[%clk 0:03:02]} 2...
d5 {[%clk 0:03:01.5]} 3. Bd3 {[%clk 0:03:03.4]} 3... c5 {[%clk 0:02:57.3]} 4.
exd5 {[%clk 0:03:03.3]} 4... exd5 {[%clk 0:02:57]} 5. Nf3 {[%clk 0:03:03.3]}
5... Nc6 {[%clk 0:02:57.3]} 6. O-O {[%clk 0:03:03.2]} 6... cxd4 {[%clk
0:02:54.5]} 7. Nbd2 {[%clk 0:02:47.7]} 7... Bc5 {[%clk 0:02:51.5]} 8. Nb3 {[%clk
0:02:39.7]} 8... Bb6 {[%clk 0:02:50.6]} 9. Bb5 {[%clk 0:02:30]} 9... Ne7 {[%clk
0:02:47.4]} 10. Nbxd4 {[%clk 0:02:27.3]} 10... O-O {[%clk 0:02:45.3]} 11. h3
{[%clk 0:02:26.6]} 11... a6 {[%clk 0:02:42.8]} 12. Be2 {[%clk 0:02:17.2]} 12...
Nf5 {[%clk 0:02:37.4]} 13. Nxf5 {[%clk 0:02:15.3]} 13... Bxf5 {[%clk 0:02:39.3]}
14. Bd3 {[%clk 0:02:12.2]} 14... Qd7 {[%clk 0:02:32.4]} 15. Bf4 {[%clk
0:02:00.4]} 15... Rfe8 {[%clk 0:02:27]} 16. c3 {[%clk 0:01:55.3]} 16... h6
{[%clk 0:02:18.8]} 17. Bg3 {[%clk 0:01:42.5]} 17... Bxh3 {[%clk 0:02:14.9]} 18.
gxh3 {[%clk 0:01:38.4]} 18... Qxh3 {[%clk 0:02:16.8]} 19. Nd4 {[%clk 0:01:39.3]}
19... Nxd4 {[%clk 0:01:52.4]} 20. cxd4 {[%clk 0:01:40.5]} 20... h5 {[%clk
0:01:44.1]} 21. Qf3 {[%clk 0:01:31.6]} 21... g6 {[%clk 0:01:34.8]} 22. Qg2
{[%clk 0:01:20.6]} 22... Qg4 {[%clk 0:01:33.5]} 23. Be5 {[%clk 0:01:13.1]} 23...
Qxg2+ {[%clk 0:01:03.1]} 24. Kxg2 {[%clk 0:01:15]} 24... Re6 {[%clk 0:01:05]}
25. Rad1 {[%clk 0:01:06.7]} 25... f6 {[%clk 0:01:02.2]} 26. Bg3 {[%clk
0:01:05.4]} 26... Kg7 {[%clk 0:00:57.7]} 27. Bc2 {[%clk 0:00:54]} 27... g5
{[%clk 0:00:55.9]} 28. Bb3 {[%clk 0:00:39.9]} 28... h4 {[%clk 0:00:51.7]} 29.
Bxd5 {[%clk 0:00:37.2]} 29... Re2 {[%clk 0:00:52.4]} 30. Bxb7 {[%clk 0:00:28.6]}
30... Rd8 {[%clk 0:00:49.2]} 31. Bh2 {[%clk 0:00:25.7]} 31... Rxb2 {[%clk
0:00:38.8]} 32. Bf3 {[%clk 0:00:23.5]} 32... Rxd4 {[%clk 0:00:37.8]} 33. Rxd4
{[%clk 0:00:18.5]} 33... Bxd4 {[%clk 0:00:39.7]} 34. a4 {[%clk 0:00:16.6]} 34...
f5 {[%clk 0:00:40.5]} 35. Bd5 {[%clk 0:00:10.5]} 35... g4 {[%clk 0:00:39]} 36.
Bf4 {[%clk 0:00:09.2]} 36... g3 {[%clk 0:00:36.3]} 37. Kh3 {[%clk 0:00:08.7]}
37... Bxf2 {[%clk 0:00:36]} 38. Be5+ {[%clk 0:00:06.8]} 1-0

[Event "*** Titled Tuesday Blitz"]
[Site "Chess.com"]
[Date "2019.03.05"]
[Round "10"]
[White "Arystanner"]
[Black "Alopekos"]
[Result "1-0"]
[WhiteElo "2650"]
[BlackElo "2458"]
[TimeControl "180+2"]
[EndTime "15:29:37 PST"]
[Termination "Arystanner won by resignation"]

1. e4 {[%clk 0:03:01.9]} 1... e5 {[%clk 0:02:57]} 2. Nf3 {[%clk 0:02:57.5]} 2...
Nc6 {[%clk 0:02:58.2]} 3. Bc4 {[%clk 0:02:59.1]} 3... Nf6 {[%clk 0:02:58.7]} 4.
d3 {[%clk 0:03:00.1]} 4... Be7 {[%clk 0:02:59.9]} 5. c3 {[%clk 0:02:59.7]} 5...
O-O {[%clk 0:02:59.5]} 6. O-O {[%clk 0:03:00.8]} 6... d6 {[%clk 0:03:00.7]} 7.
a4 {[%clk 0:03:02.3]} 7... Kh8 {[%clk 0:03:01.3]} 8. Nbd2 {[%clk 0:02:57.9]}
8... Ng8 {[%clk 0:03:01]} 9. d4 {[%clk 0:02:59.5]} 9... f5 {[%clk 0:02:59.7]}
10. dxe5 {[%clk 0:03:00.1]} 10... fxe4 {[%clk 0:02:57.8]} 11. Nxe4 {[%clk
0:03:00.2]} 11... Rxf3 {[%clk 0:02:59.2]} 12. Qxf3 {[%clk 0:03:01.8]} 12... d5
{[%clk 0:02:59.2]} 13. Ba2 {[%clk 0:02:11.2]} 13... dxe4 {[%clk 0:02:36.9]} 14.
Qxe4 {[%clk 0:02:13.1]} 14... g6 {[%clk 0:02:23.5]} 15. Be3 {[%clk 0:01:57.2]}
15... Bf5 {[%clk 0:02:21.4]} 16. Qf4 {[%clk 0:01:58.7]} 16... h6 {[%clk
0:02:08.8]} 17. Rad1 {[%clk 0:01:49.8]} 17... Qf8 {[%clk 0:02:06.5]} 18. Qg3
{[%clk 0:01:40.1]} 18... Kh7 {[%clk 0:01:24.8]} 19. f4 {[%clk 0:01:39.5]} 19...
Bc5 {[%clk 0:01:02.7]} 20. b4 {[%clk 0:01:37.7]} 20... Bxe3+ {[%clk 0:01:03.1]}
21. Qxe3 {[%clk 0:01:39.6]} 21... a6 {[%clk 0:01:02]} 22. h3 {[%clk 0:01:37.3]}
22... h5 {[%clk 0:00:58.4]} 23. Kh2 {[%clk 0:01:23.8]} 23... Nh6 {[%clk
0:00:56.8]} 24. e6 {[%clk 0:01:21.3]} 24... Re8 {[%clk 0:00:53.4]} 25. Rd7+
{[%clk 0:01:21]} 25... Re7 {[%clk 0:00:54.6]} 26. Rfd1 {[%clk 0:01:21.6]} 26...
Qf6 {[%clk 0:00:52]} 27. Rxe7+ {[%clk 0:01:20]} 27... Nxe7 {[%clk 0:00:52.6]}
28. Rd7 {[%clk 0:01:21.2]} 28... Qh4 {[%clk 0:00:38.8]} 29. Kg1 {[%clk
0:01:15.3]} 29... Ng8 {[%clk 0:00:23.3]} 30. Rxc7 {[%clk 0:01:12]} 30... b5
{[%clk 0:00:24.6]} 31. axb5 {[%clk 0:01:11.1]} 31... axb5 {[%clk 0:00:26.5]} 32.
c4 {[%clk 0:01:06.3]} 32... Qf6 {[%clk 0:00:26.9]} 33. Qe5 {[%clk 0:01:07.1]}
33... Qxe5 {[%clk 0:00:26.7]} 34. fxe5 {[%clk 0:01:08.3]} 34... Bxe6 {[%clk
0:00:28.6]} 35. cxb5 {[%clk 0:00:55.7]} 35... Bxa2 {[%clk 0:00:29.5]} 36. b6
{[%clk 0:00:57.3]} 36... Bd5 {[%clk 0:00:29.5]} 37. b7 {[%clk 0:00:58.8]} 37...
Bxb7 {[%clk 0:00:30.7]} 38. Rxb7 {[%clk 0:01:00.7]} 38... Kh6 {[%clk 0:00:07.9]}
39. b5 {[%clk 0:00:59.4]} 39... Nd5 {[%clk 0:00:07.4]} 40. b6 {[%clk 0:00:45.6]}
40... Nge7 {[%clk 0:00:08.3]} 41. Rd7 {[%clk 0:00:47]} 41... Nxb6 {[%clk
0:00:04.8]} 42. Rxe7 {[%clk 0:00:48]} 42... Kg5 {[%clk 0:00:06.6]} 43. Rf7
{[%clk 0:00:47.1]} 43... Nc4 {[%clk 0:00:02.4]} 44. e6 {[%clk 0:00:47.8]} 44...
Nd6 {[%clk 0:00:03.8]} 45. Rf8 {[%clk 0:00:48.2]} 45... Nf5 {[%clk 0:00:02]} 46.
Rxf5+ {[%clk 0:00:49.1]} 1-0

[Event "*** Titled Tuesday Blitz"]
[Site "Chess.com"]
[Date "2019.03.05"]
[Round "10"]
[White "SF-96"]
[Black "xLuring1"]
[Result "1-0"]
[WhiteElo "2563"]
[BlackElo "2408"]
[TimeControl "180+2"]
[EndTime "15:29:39 PST"]
[Termination "SF-96 won by resignation"]

1. e4 {[%clk 0:03:00.9]} 1... c5 {[%clk 0:02:59.8]} 2. Nf3 {[%clk 0:03:02.2]}
2... Nc6 {[%clk 0:03:00.5]} 3. d4 {[%clk 0:03:03.4]} 3... cxd4 {[%clk
0:03:02.2]} 4. Nxd4 {[%clk 0:03:05.3]} 4... Qc7 {[%clk 0:03:03.1]} 5. Nc3 {[%clk
0:03:04.1]} 5... e6 {[%clk 0:03:03.7]} 6. Be3 {[%clk 0:02:53.3]} 6... a6 {[%clk
0:03:04.6]} 7. Nxc6 {[%clk 0:02:53.5]} 7... dxc6 {[%clk 0:03:01.7]} 8. Bd3
{[%clk 0:02:49.4]} 8... e5 {[%clk 0:03:00.3]} 9. O-O {[%clk 0:02:48.5]} 9... Nf6
{[%clk 0:03:01.3]} 10. h3 {[%clk 0:02:40.7]} 10... Be7 {[%clk 0:03:01.1]} 11. f4
{[%clk 0:02:41.4]} 11... exf4 {[%clk 0:02:45]} 12. Bxf4 {[%clk 0:02:41.1]} 12...
Qb6+ {[%clk 0:02:45.1]} 13. Kh2 {[%clk 0:02:41]} 13... O-O {[%clk 0:02:37]} 14.
e5 {[%clk 0:02:39.8]} 14... Nd5 {[%clk 0:02:34.9]} 15. Ne4 {[%clk 0:02:30]}
15... Nxf4 {[%clk 0:02:32.2]} 16. Rxf4 {[%clk 0:02:31.1]} 16... Qxb2 {[%clk
0:02:28.8]} 17. Qh5 {[%clk 0:01:49.8]} 17... g6 {[%clk 0:02:10.3]} 18. Qh6
{[%clk 0:01:51]} 18... Qxe5 {[%clk 0:02:06.1]} 19. Rf1 {[%clk 0:01:51.2]} 19...
Qg7 {[%clk 0:01:54.9]} 20. Qxg7+ {[%clk 0:01:28.2]} 20... Kxg7 {[%clk
0:01:54.1]} 21. Bc4 {[%clk 0:01:29.6]} 21... f5 {[%clk 0:01:50]} 22. Ng3 {[%clk
0:01:30.3]} 22... h5 {[%clk 0:01:40.5]} 23. Rd1 {[%clk 0:01:23.5]} 23... Bf6
{[%clk 0:01:20]} 24. Rf3 {[%clk 0:01:17.9]} 24... Be5 {[%clk 0:01:06.5]} 25. Kg1
{[%clk 0:01:02.6]} 25... b5 {[%clk 0:00:58.3]} 26. Bb3 {[%clk 0:01:02.9]} 26...
Ra7 {[%clk 0:00:56.2]} 27. Ne2 {[%clk 0:01:01.2]} 27... Re7 {[%clk 0:00:51.2]}
28. a4 {[%clk 0:00:54.8]} 28... Rfe8 {[%clk 0:00:49.2]} 29. axb5 {[%clk
0:00:49.8]} 29... cxb5 {[%clk 0:00:46.9]} 30. Rfd3 {[%clk 0:00:48.5]} 30... Bb8
{[%clk 0:00:39.2]} 31. Nd4 {[%clk 0:00:43.9]} 31... Bg3 {[%clk 0:00:38.3]} 32.
Rxg3 {[%clk 0:00:44.3]} 32... Kf6 {[%clk 0:00:25.9]} 33. Nc6 {[%clk 0:00:42.9]}
33... Re1+ {[%clk 0:00:22.7]} 34. Rxe1 {[%clk 0:00:44]} 34... Rxe1+ {[%clk
0:00:23.9]} 35. Kf2 {[%clk 0:00:45.9]} 35... Ra1 {[%clk 0:00:19.8]} 36. Rd3
{[%clk 0:00:46.3]} 36... a5 {[%clk 0:00:19.6]} 37. Rd6+ {[%clk 0:00:44.2]} 37...
Kg5 {[%clk 0:00:20.1]} 38. Ne7 {[%clk 0:00:44.2]} 38... a4 {[%clk 0:00:21]} 39.
g3 {[%clk 0:00:32.8]} 39... Kh6 {[%clk 0:00:20.9]} 40. Bg8 {[%clk 0:00:24.5]}
40... Kg7 {[%clk 0:00:19.1]} 41. Rxg6+ {[%clk 0:00:25.4]} 41... Kf8 {[%clk
0:00:19.7]} 42. Nxc8 {[%clk 0:00:26.7]} 42... a3 {[%clk 0:00:20.4]} 43. Be6
{[%clk 0:00:27.7]} 1-0